fUSD/lending_fUSD_20250828
["ID","MTS","AMOUNT","RATE_DAILY","PERIOD"]
[381875238,1756384250181,-2000.0,0.000223,2]
[381875240,1756384250191,-1000.0,0.00022348,2]
[381875242,1756384250205,-500.0,0.00022383,2]
[381875244,1756384250214,-500.0,0.00022383,2]
[381875246,1756384250225,-500.0,0.00022383,2]
[381875248,1756384250236,-579.47,0.00022383,2]
[381875250,1756384250246,-622.10199,0.0002239,2]
[381875252,1756384250256,-907.27131594,0.00022433,2]
[381875254,1756384250266,-217.22,0.00022471,2]
[381875256,1756384250276,-481.39951999,0.00022498,2]
[381875258,1756384250286,-400.0,0.00022546,2]
[381875260,1756384250295,-400.0,0.00022546,2]
[381875262,1756384250304,-400.0,0.00022546,2]
[381875264,1756384250314,-170.24,0.00022547,2]
[381875266,1756384250323,-173.86,0.00022547,2]
[381875268,1756384250332,-245.69,0.00022547,2]
[381875270,1756384250342,-257.97,0.00022547,2]
[381875272,1756384250352,-184.89,0.00022547,2]
[381875274,1756384250361,-447.9,0.00022547,2]
[381875276,1756384250371,-483.22,0.00022547,2]
[381875278,1756384250380,-191.96,0.00022547,2]
[381875280,1756384250389,-530.39,0.00022547,2]
[381875282,1756384250398,-221.05,0.00022547,2]
[381875300,1756384250560,-417.19,0.00022547,2]
[381875302,1756384250570,-366.97,0.00022547,2]
[381875304,1756384250580,-153.24,0.00022547,2]
[381875306,1756384250590,-152.95,0.00022547,2]
[381875308,1756384250599,-304.16,0.00022547,2]
[381875310,1756384250609,-474.0,0.00022547,2]
[381875312,1756384250619,-536.5,0.00022547,2]
[381875314,1756384250628,-189.18,0.00022547,2]
[381875316,1756384250638,-327.36,0.00022547,2]
[381875318,1756384250648,-251.25,0.00022547,2]
[381875320,1756384250657,-271.29,0.00022547,2]
[381875322,1756384250667,-155.43,0.00022547,2]
[381875324,1756384250676,-400.0,0.00022547,2]
[381875326,1756384250686,-400.0,0.00022547,2]
[381875328,1756384250696,-400.0,0.00022547,2]
[381875330,1756384250705,-400.0,0.00022547,2]
[381875332,1756384250715,-500.0,0.00022657,2]
[381875333,1756384250724,-500.0,0.00022657,2]
[381875335,1756384250734,-500.0,0.00022657,2]
[381875338,1756384250745,-579.47,0.00022657,2]
[381875339,1756384250755,-193.01,0.00022799,2]
[381875342,1756384250764,-16344.47817853,0.000228,4]
[381875343,1756384250774,-138716.19245442,0.000228,7]
[381875345,1756384250783,-151.0,0.000228,7]
[381875348,1756384250793,-152.376358,0.000228,7]
[381875349,1756384250803,-151.0,0.000228,7]
[381875351,1756384250812,-151.0,0.000228,7]
[381875354,1756384250822,-151.0,0.000228,7]
[381875355,1756384250832,-151.0,0.000228,7]
[381875358,1756384250842,-7743.006466,0.000228,7]
[381875359,1756384250853,-255.27331,0.000228,7]
[381875361,1756384250863,-255.27331,0.000228,7]
[381875363,1756384250872,-7743.006466,0.000228,7]
[381875365,1756384250882,-225.915973,0.000228,7]
[381875368,1756384250892,-151.0,0.000228,7]
[381875370,1756384250902,-7743.006466,0.000228,7]
[381875372,1756384250912,-225.915973,0.000228,7]
[381875373,1756384250921,-255.27331,0.000228,7]
[381875375,1756384250931,-255.27331,0.000228,7]
[381875377,1756384250941,-7743.006466,0.000228,7]
[381875380,1756384250950,-225.915973,0.000228,7]
[381875381,1756384250960,-225.915973,0.000228,7]
[381875383,1756384250969,-151.0,0.000228,7]
[381875385,1756384250979,-151.0,0.000228,7]
[381875387,1756384250990,-151.0,0.000228,7]
[381875389,1756384251000,-151.0,0.000228,7]
[381875392,1756384251009,-151.0,0.000228,7]
[381875393,1756384251019,-151.0,0.000228,7]
[381875395,1756384251029,-151.0,0.000228,7]
[381875397,1756384251039,-550.946038,0.000228,7]
[381875400,1756384251049,-151.0,0.000228,7]
[381875402,1756384251059,-550.946038,0.000228,7]
[381875404,1756384251068,-550.946038,0.000228,7]
[381875406,1756384251078,-1125.805275,0.000228,7]
[381875407,1756384251088,-181.799006,0.000228,7]
[381875410,1756384251098,-151.0,0.000228,7]
[381875412,1756384251107,-151.0,0.000228,7]
[381875414,1756384251117,-550.946038,0.000228,7]
[381875415,1756384251127,-1125.805275,0.000228,7]
[381875418,1756384251137,-181.799006,0.000228,7]
[381875419,1756384251147,-1125.805275,0.000228,7]
[381875421,1756384251157,-181.799006,0.000228,7]
[381875423,1756384251167,-1125.805275,0.000228,7]
[381875425,1756384251177,-181.799006,0.000228,7]
[381875427,1756384251186,-151.0,0.000228,7]
[381875429,1756384251199,-200.0,0.000228,2]
[381875431,1756384251209,-200.0,0.000228,2]
[381875433,1756384251218,-151.0,0.000228,7]
[381875435,1756384251227,-200.0,0.000228,2]
[381875437,1756384251238,-200.0,0.000228,2]
[381875439,1756384251248,-200.0,0.000228,2]
[381875441,1756384251257,-200.0,0.000228,2]
[381875443,1756384251266,-200.0,0.000228,2]
[381875445,1756384251276,-200.0,0.000228,2]
[381875447,1756384251285,-200.0,0.000228,2]
[381875449,1756384251295,-200.0,0.000228,2]
[381875451,1756384251304,-200.0,0.000228,2]
[381875453,1756384251314,-200.0,0.000228,2]
[381875455,1756384251323,-200.0,0.000228,2]
[381875457,1756384251333,-200.0,0.000228,2]
[381875459,1756384251342,-200.0,0.000228,2]
[381875461,1756384251352,-200.0,0.000228,2]
[381875463,1756384251362,-200.0,0.000228,2]
[381875465,1756384251371,-200.0,0.000228,2]
[381875467,1756384251381,-200.0,0.000228,2]
[381875469,1756384251391,-200.0,0.000228,2]
[381875471,1756384251401,-200.0,0.000228,2]
[381875473,1756384251411,-200.0,0.000228,2]
[381875475,1756384251420,-200.0,0.000228,2]
[381875477,1756384251429,-200.0,0.000228,2]
[381875479,1756384251438,-2079.307895,0.000228,7]
[381875481,1756384251448,-200.0,0.000228,2]
[381875483,1756384251458,-200.0,0.000228,2]
[381875485,1756384251468,-200.0,0.000228,2]
[381875487,1756384251478,-200.0,0.000228,2]
[381875489,1756384251490,-2079.307895,0.000228,7]
[381875491,1756384251500,-204.198481,0.000228,2]
[381875493,1756384251510,-151.0,0.000228,7]
[381875495,1756384251521,-2079.307895,0.000228,7]
[381875497,1756384251531,-151.0,0.000228,7]
[381875499,1756384251543,-2079.307895,0.000228,7]
[381875501,1756384251553,-151.0,0.000228,7]
[381875503,1756384251563,-286.288454,0.000228,7]
[381875505,1756384251573,-286.288454,0.000228,7]
[381875507,1756384251583,-286.288454,0.000228,7]
[381875509,1756384251592,-286.288454,0.000228,7]
[381875511,1756384251602,-631.76357,0.000228,7]
[381875513,1756384251612,-631.76357,0.000228,7]
[381875515,1756384251623,-631.76357,0.000228,7]
[381875517,1756384251633,-195.966966,0.000228,7]
[381875519,1756384251643,-202.697151,0.000228,7]
[381875521,1756384251653,-631.76357,0.000228,7]
[381875523,1756384251662,-151.0,0.000228,7]
[381875525,1756384251672,-202.697151,0.000228,7]
[381875527,1756384251682,-195.966966,0.000228,7]
[381875529,1756384251691,-195.966966,0.000228,7]
[381875531,1756384251701,-151.0,0.000228,7]
[381875533,1756384251710,-249.22,0.0002282,2]
[381875535,1756384251720,-400.0,0.0002282,2]
[381875537,1756384251730,-400.0,0.0002282,2]
[381875539,1756384251744,-400.0,0.00022821,2]
[381875541,1756384251754,-400.0,0.00022821,2]
[381875543,1756384251763,-400.0,0.00022821,2]
[381875545,1756384251773,-160.382967,0.00022821,7]
[381875547,1756384251782,-160.382967,0.00022821,7]
[381875549,1756384251791,-160.382967,0.00022821,7]
[381875551,1756384251800,-160.382967,0.00022821,7]
[381875553,1756384251810,-151.0,0.00022821,7]
[381875555,1756384251819,-151.0,0.00022821,7]
[381875557,1756384251828,-151.007138,0.00022821,7]
[381875559,1756384251838,-151.0,0.00022821,7]
[381875561,1756384251847,-151.0,0.00022821,7]
[381875562,1756384251858,-153.220756,0.00022821,7]
[381875565,1756384251868,-151.0,0.00022821,7]
[381875566,1756384251878,-151.0,0.00022821,7]
[381875568,1756384251887,-151.0,0.00022821,7]
[381875570,1756384251897,-151.0,0.00022821,7]
[381875572,1756384251907,-151.0,0.00022821,7]
[381875575,1756384251917,-151.0,0.00022821,7]
[381875577,1756384251927,-151.0,0.00022821,7]
[381875578,1756384251937,-151.0,0.00022821,7]
[381875581,1756384251947,-151.0,0.00022821,7]
[381875583,1756384251957,-151.0,0.00022821,7]
[381875584,1756384251967,-151.0,0.00022821,7]
[381875586,1756384251976,-193.045024,0.00022821,7]
[381875588,1756384251985,-533.13613,0.00022821,7]
[381875590,1756384251996,-151.0,0.00022821,7]
[381875592,1756384252006,-533.13613,0.00022821,7]
[381875594,1756384252015,-533.13613,0.00022821,7]
[381875596,1756384252025,-533.13613,0.00022821,7]
[381875598,1756384252034,-246.686283,0.00022821,7]
[381875600,1756384252043,-151.0,0.00022821,7]
[381875603,1756384252054,-246.686283,0.00022821,7]
[381875604,1756384252063,-246.686283,0.00022821,7]
[381875606,1756384252072,-153.616725,0.00022821,7]
[381875608,1756384252082,-400.0,0.00022821,2]
[381875610,1756384252091,-246.686283,0.00022821,7]
[381875612,1756384252100,-151.0,0.00022821,7]
[381875614,1756384252109,-622.10198,0.0002289,2]
[381875616,1756384252118,-596.0,0.00022931,2]
[381875618,1756384252128,-500.0,0.00022931,2]
[381875620,1756384252138,-500.0,0.00022931,2]
[381875622,1756384252148,-579.47,0.00022931,2]
[381875624,1756384252158,-1000.0,0.00023,2]
[381875626,1756384252167,-217.23524532,0.00023041,2]
[381875628,1756384252177,-400.0,0.00023094,2]
[381875630,1756384252186,-400.0,0.00023094,2]
[381875631,1756384252200,-400.0,0.00023095,2]
[381875633,1756384252210,-400.0,0.00023095,2]
[381875635,1756384252219,-400.0,0.00023095,2]
[381875637,1756384252229,-160.18,0.00023095,2]
[381875639,1756384252239,-907.27131594,0.00023189,2]
[381875641,1756384252249,-204.04,0.000232,7]
[381875643,1756384252258,-2860.31,0.000232,7]
[381875645,1756384252268,-3137.65,0.000232,2]
[381875647,1756384252278,-500.0,0.00023205,2]
[381875649,1756384252288,-188.10052515,0.00023205,2]
[381875651,1756384252297,-579.47,0.00023205,2]
[381875653,1756384252307,-217.24,0.00023246,2]
[381875655,1756384252317,-400.0,0.00023368,2]
[381875657,1756384252326,-400.0,0.00023368,2]
[381875659,1756384252335,-400.0,0.00023369,2]
[381875660,1756384252345,-400.0,0.00023369,2]
[381875662,1756384252353,-400.0,0.00023369,2]
[381875664,1756384252364,-500.0,0.00023479,2]
[381875666,1756384252373,-579.47,0.00023479,2]
[381875668,1756384252383,-309.29654756,0.00023633,2]
[381875670,1756384252393,-400.0,0.00023642,2]
[381875672,1756384252402,-400.0,0.00023642,2]
[381875674,1756384252411,-400.0,0.00023643,2]
[381875676,1756384252421,-400.0,0.00023643,2]
[381875678,1756384252430,-400.0,0.00023643,2]
[381875680,1756384252439,-2520.03995233,0.000237,2]
[381875682,1756384252448,-3776.33721564,0.00023748,3]
[381875684,1756384252457,-500.0,0.00023753,2]
[381875686,1756384252467,-579.47,0.00023753,2]
[381875688,1756384252476,-938.6162545,0.00023802,2]
[381875690,1756384252486,-930.6194408,0.00023846,2]
[381875692,1756384252496,-700.0,0.000239,8]
[381875694,1756384252506,-400.0,0.00023916,2]
[381875696,1756384252515,-400.0,0.00023916,2]
[381875698,1756384252524,-400.0,0.00023917,2]
[381875700,1756384252534,-400.0,0.00023917,2]
[381875702,1756384252544,-907.27131594,0.00023944,2]
[381875704,1756384252554,-1000.0,0.00024,2]
[381875706,1756384252563,-844.93374113,0.00024,7]
[381875708,1756384252574,-160.0,0.00024,7]
[381875710,1756384252584,-5000.00947543,0.00024,5]
[381875712,1756384252593,-4000.0,0.00024,4]
[381875714,1756384252603,-500.0,0.00024027,2]
[381875716,1756384252612,-579.47,0.00024027,2]
[381875718,1756384252621,-481.39951999,0.0002403,2]
[381875719,1756384252631,-4175.1892578,0.00024032,2]
[381875720,1756384252641,-243.0,0.000241,2]
[381875721,1756384252650,-384.0,0.000241,2]
[381875722,1756384252661,-400.0,0.0002419,2]
[381875723,1756384252671,-219.88,0.00024191,2]
[381875724,1756384252680,-400.0,0.00024191,2]
[381875725,1756384252690,-500.0,0.00024301,2]
[381875726,1756384252700,-579.64,0.00024301,2]
[381875727,1756384252710,-400.0,0.00024464,2]
[381875728,1756384252720,-400.0,0.00024465,2]
[381875729,1756384252730,-660.21912553,0.000245,2]
[381875730,1756384252741,-207.6492648,0.00024568,2]
[381875731,1756384252751,-500.0,0.00024575,2]
[381875732,1756384252762,-1000.0,0.00024583,2]
[381875733,1756384252771,-209.4335952,0.00024598,2]
[381875734,1756384252781,-1728.26,0.000246,2]
[381875736,1756384252790,-2000.0,0.000246,2]
[381875738,1756384252800,-2000.0,0.000246,2]
[381875740,1756384252809,-2000.0,0.000246,2]
[381875742,1756384252819,-2000.0,0.000246,2]
[381875744,1756384252829,-2000.0,0.000246,2]
[381875746,1756384252838,-2000.0,0.000246,2]
[381875748,1756384252847,-1008.26,0.000246,2]
[381875750,1756384252857,-1999.95,0.000246,2]
[381875752,1756384252866,-882.82,0.000246,2]
[381875754,1756384252876,-153.0,0.00024658,2]
[381875756,1756384252886,-153.0,0.00024658,2]
[381875758,1756384252895,-204.04,0.000247,7]
[381875760,1756384252904,-2860.31,0.000247,7]
[381875762,1756384252918,-3137.65,0.000247,2]
[381875764,1756384252927,-150.69606534,0.000247,4]
[381875766,1756384252937,-150.69606534,0.000247,4]
[381875768,1756384252947,-150.69606534,0.000247,4]
[381875774,1756384252956,-150.69606534,0.000247,4]
[381875776,1756384253004,-150.69606534,0.000247,4]
[381875778,1756384253013,-150.69606534,0.000247,4]
[381875779,1756384253022,-150.69606534,0.000247,4]
[381875781,1756384253032,-150.69606534,0.000247,4]
[381875784,1756384253044,-150.69606534,0.000247,4]
[381875786,1756384253054,-150.69,0.000247,4]
[381875788,1756384253063,-171.22398612,0.000247,4]
[381875789,1756384253072,-171.22398612,0.000247,4]
[381875792,1756384253082,-171.22398612,0.000247,4]
[381875793,1756384253091,-171.22,0.000247,4]
[381875795,1756384253101,-907.27131594,0.000247,2]
[381875798,1756384253111,-400.0,0.00024738,2]
[381875799,1756384253121,-400.0,0.00024739,2]
[381875801,1756384253131,-217.23524532,0.00024755,2]
[381875804,1756384253141,-150.0,0.00024775,2]
[381875805,1756384253151,-818.45514667,0.00024777,2]
[381875807,1756384253160,-1043.12910851,0.00024778,2]
[381875809,1756384253170,-1267.80307034,0.0002478,2]
[381875812,1756384253180,-1492.47703217,0.00024782,2]
[381875814,1756384253190,-1717.150994,0.00024783,2]
[381875815,1756384253203,-1941.82495583,0.00024785,2]
[381875817,1756384253213,-2166.49891767,0.00024787,2]
[381875819,1756384253223,-2391.1728795,0.00024788,2]
[381875821,1756384253234,-2615.84684133,0.0002479,2]
[381875823,1756384253245,-151.0,0.000248,7]
[381875825,1756384253262,-160.0,0.000248,3]
[381875827,1756384253277,-1683.070974,0.000248,7]
[381875829,1756384253287,-1683.070974,0.000248,7]
[381875831,1756384253297,-1683.070974,0.000248,7]
[381875833,1756384253306,-151.0,0.000248,7]
[381875835,1756384253315,-1683.070974,0.000248,7]
[381875837,1756384253325,-151.0,0.000248,7]
[381875839,1756384253334,-151.0,0.000248,7]
[381875841,1756384253344,-151.0,0.000248,7]
[381875843,1756384253353,-250.74637,0.000248,7]
[381875845,1756384253362,-151.0,0.000248,7]
[381875846,1756384253371,-250.74637,0.000248,7]
[381875848,1756384253381,-324.076933,0.000248,7]
[381875850,1756384253391,-250.74637,0.000248,7]
[381875852,1756384253400,-324.076933,0.000248,7]
[381875854,1756384253410,-250.74637,0.000248,7]
[381875856,1756384253420,-324.076933,0.000248,7]
[381875858,1756384253430,-324.076933,0.000248,7]
[381875860,1756384253440,-206.81301778,0.000248,3]
[381875862,1756384253452,-151.0,0.000248,7]
[381875864,1756384253461,-151.0,0.000248,7]
[381875866,1756384253471,-151.0,0.000248,7]
[381875868,1756384253481,-151.0,0.000248,7]
[381875870,1756384253492,-153.633643,0.000248,7]
[381875872,1756384253502,-151.0,0.000248,7]
[381875874,1756384253512,-151.0,0.000248,7]
[381875876,1756384253521,-151.0,0.000248,7]
[381875878,1756384253531,-443.877866,0.000248,7]
[381875880,1756384253540,-151.0,0.000248,7]
[381875882,1756384253550,-1211.127258,0.000248,7]
[381875884,1756384253561,-443.877866,0.000248,7]
[381875886,1756384253571,-151.0,0.000248,7]
[381875888,1756384253580,-443.877866,0.000248,7]
[381875890,1756384253590,-1211.127258,0.000248,7]
[381875892,1756384253599,-443.877866,0.000248,7]
[381875894,1756384253608,-1211.127258,0.000248,7]
[381875896,1756384253618,-1211.127258,0.000248,7]
[381875897,1756384253627,-151.0,0.000248,7]
[381875899,1756384253637,-178.290884,0.000248,7]
[381875901,1756384253646,-151.0,0.000248,7]
[381875903,1756384253656,-151.0,0.000248,7]
[381875905,1756384253665,-178.290884,0.000248,7]
[381875907,1756384253675,-178.290884,0.000248,7]
[381875909,1756384253684,-178.290884,0.000248,7]
[381875911,1756384253694,-151.0,0.000248,7]
[381875913,1756384253703,-151.0,0.000248,7]
[381875915,1756384253713,-151.0,0.000248,7]
[381875917,1756384253723,-190.789485,0.000248,7]
[381875919,1756384253732,-151.0,0.000248,7]
[381875921,1756384253744,-151.0,0.000248,7]
[381875923,1756384253753,-151.0,0.000248,7]
[381875925,1756384253763,-151.0,0.000248,7]
[381875927,1756384253772,-190.789485,0.000248,7]
[381875929,1756384253781,-151.0,0.000248,7]
[381875931,1756384253792,-190.789485,0.000248,7]
[381875933,1756384253801,-294.516105,0.000248,7]
[381875935,1756384253811,-181.031516,0.000248,7]
[381875937,1756384253821,-151.0,0.000248,7]
[381875939,1756384253831,-190.789485,0.000248,7]
[381875941,1756384253840,-181.031516,0.000248,7]
[381875943,1756384253849,-181.031516,0.000248,7]
[381875945,1756384253858,-181.031516,0.000248,7]
[381875947,1756384253868,-422362.341826,0.000248,3]
[381875949,1756384253879,-151.0,0.000248,7]
[381875951,1756384253890,-160.382967,0.000248,7]
[381875953,1756384253899,-160.382967,0.000248,7]
[381875955,1756384253909,-4884.786664,0.000248,7]
[381875957,1756384253919,-160.382967,0.000248,7]
[381875959,1756384253929,-4884.786664,0.000248,7]
[381875961,1756384253938,-160.382967,0.000248,7]
[381875963,1756384253947,-4884.786664,0.000248,7]
[381875965,1756384253956,-4884.786664,0.000248,7]
[381875967,1756384253965,-151.0,0.000248,7]
[381875969,1756384253974,-151.0,0.000248,7]
[381875971,1756384253983,-151.0,0.000248,7]
[381875973,1756384253994,-151.0,0.000248,7]
[381875975,1756384254003,-151.0,0.000248,7]
[381875977,1756384254012,-151.0,0.000248,7]
[381875979,1756384254023,-190.219455,0.000248,7]
[381875981,1756384254032,-151.0,0.000248,7]
[381875983,1756384254041,-151.0,0.000248,7]
[381875985,1756384254050,-151.0,0.000248,7]
[381875987,1756384254060,-151.0,0.000248,7]
[381875989,1756384254070,-151.0,0.000248,7]
[381875991,1756384254080,-151.0,0.000248,7]
[381875993,1756384254089,-151.0,0.000248,7]
[381875995,1756384254099,-151.0,0.000248,7]
[381875997,1756384254108,-151.0,0.000248,7]
[381875999,1756384254118,-533.13613,0.000248,7]
[381876001,1756384254128,-151.0,0.000248,7]
[381876002,1756384254138,-533.13613,0.000248,7]
[381876004,1756384254147,-533.13613,0.000248,7]
[381876007,1756384254157,-533.13613,0.000248,7]
[381876009,1756384254167,-246.686283,0.000248,7]
[381876011,1756384254176,-246.686283,0.000248,7]
[381876013,1756384254186,-246.686283,0.000248,7]
[381876015,1756384254199,-246.686283,0.000248,7]
[381876017,1756384254208,-151.0,0.000248,7]
[381876019,1756384254218,-151.0,0.000248,7]
[381876021,1756384254228,-151.0,0.000248,7]
[381876023,1756384254241,-153.356996,0.000248,7]
[381876025,1756384254250,-151.0,0.000248,7]
[381876027,1756384254260,-151.0,0.000248,7]
[381876029,1756384254269,-7743.006466,0.000248,7]
[381876030,1756384254279,-255.27331,0.000248,7]
[381876032,1756384254290,-255.27331,0.000248,7]
[381876034,1756384254299,-7743.006466,0.000248,7]
[381876036,1756384254310,-225.915973,0.000248,7]
[381876038,1756384254320,-198.945038,0.000248,7]
[381876040,1756384254330,-7743.006466,0.000248,7]
[381876042,1756384254339,-225.915973,0.000248,7]
[381876044,1756384254348,-255.27331,0.000248,7]
[381876046,1756384254358,-255.27331,0.000248,7]
[381876048,1756384254367,-7743.006466,0.000248,7]
[381876050,1756384254377,-225.915973,0.000248,7]
[381876052,1756384254386,-225.915973,0.000248,7]
[381876054,1756384254396,-151.0,0.000248,7]
[381876056,1756384254405,-153.597583,0.000248,7]
[381876058,1756384254414,-151.0,0.000248,7]
[381876060,1756384254423,-151.0,0.000248,7]
[381876062,1756384254432,-151.0,0.000248,7]
[381876064,1756384254441,-151.0,0.000248,7]
[381876066,1756384254449,-151.0,0.000248,7]
[381876068,1756384254459,-550.946038,0.000248,7]
[381876070,1756384254468,-169.63283,0.000248,7]
[381876072,1756384254477,-550.946038,0.000248,7]
[381876074,1756384254488,-550.946038,0.000248,7]
[381876076,1756384254497,-1125.805275,0.000248,7]
[381876078,1756384254506,-181.799006,0.000248,7]
[381876080,1756384254516,-151.0,0.000248,7]
[381876082,1756384254526,-152.304238,0.000248,7]
[381876084,1756384254536,-550.946038,0.000248,7]
[381876086,1756384254546,-1125.805275,0.000248,7]
[381876088,1756384254555,-181.799006,0.000248,7]
[381876090,1756384254566,-1125.805275,0.000248,7]
[381876092,1756384254575,-181.799006,0.000248,7]
[381876094,1756384254586,-1125.805275,0.000248,7]
[381876096,1756384254596,-181.799006,0.000248,7]
[381876098,1756384254605,-151.0,0.000248,7]
[381876100,1756384254618,-151.0,0.000248,7]
[381876102,1756384254628,-1065.0,0.000248,5]
[381876104,1756384254638,-2079.307895,0.000248,7]
[381876106,1756384254648,-2079.307895,0.000248,7]
[381876109,1756384254659,-151.0,0.000248,7]
[381876110,1756384254668,-2079.307895,0.000248,7]
[381876113,1756384254678,-151.0,0.000248,7]
[381876114,1756384254688,-2079.307895,0.000248,7]
[381876117,1756384254699,-151.0,0.000248,7]
[381876119,1756384254709,-286.288454,0.000248,7]
[381876121,1756384254718,-286.288454,0.000248,7]
[381876123,1756384254728,-286.288454,0.000248,7]
[381876125,1756384254738,-631.76357,0.000248,7]
[381876127,1756384254748,-286.288454,0.000248,7]
[381876129,1756384254758,-631.76357,0.000248,7]
[381876131,1756384254767,-631.76357,0.000248,7]
[381876133,1756384254776,-195.966966,0.000248,7]
[381876135,1756384254785,-202.697151,0.000248,7]
[381876137,1756384254795,-631.76357,0.000248,7]
[381876139,1756384254804,-151.0,0.000248,7]
[381876141,1756384254813,-202.697151,0.000248,7]
[381876142,1756384254822,-195.966966,0.000248,7]
[381876144,1756384254832,-500.0,0.00024849,2]
[381876146,1756384254841,-931.6106477,0.0002488,2]
[381876148,1756384254850,-500.98236192,0.000249,2]
[381876150,1756384254860,-5625.37475535,0.000249,2]
[381876152,1756384254869,-1000.0,0.00025,2]
[381876155,1756384254878,-320.74051982,0.00025002,2]
[381876157,1756384254888,-542.60936025,0.00025004,2]
[381876158,1756384254898,-225.18697532,0.00025004,2]
[381876160,1756384254907,-547.91302088,0.0002501,2]
[381876163,1756384254917,-400.0,0.00025012,2]
[381876165,1756384254926,-303.27052011,0.00025013,2]
[381876166,1756384254935,-371.0,0.00025122,2]
[381876168,1756384254945,-217.24,0.00025123,2]
[381876170,1756384254955,-400.0,0.00025286,2]
[381876173,1756384254964,-400.0,0.0002556,2]
[381876175,1756384254973,-481.39951999,0.00025562,2]
[381876177,1756384254982,-168.0,0.0002578,2]
[381876178,1756384254994,-2061.27,0.00025786,2]
[381876180,1756384255003,-1056.0,0.000258,2]
[381876182,1756384255013,-400.0,0.00025834,2]
[381876184,1756384255022,-5625.37475522,0.00025859,4]
[381876186,1756384255031,-1298.0,0.00025859,2]
[381876188,1756384255040,-566.0,0.00025859,2]
[381876190,1756384255049,-599.0,0.00025859,2]
[381876192,1756384255058,-1575.0,0.00025859,2]
[381876194,1756384255067,-1174.0,0.00025859,2]
[381876196,1756384255076,-895.0,0.00025859,2]
[381876198,1756384255085,-926.0,0.00025859,2]
[381876200,1756384255095,-4156.0,0.00025859,2]
[381876202,1756384255104,-2028.0,0.00025859,2]
[381876204,1756384255113,-3376.0,0.00025859,2]
[381876206,1756384255122,-1256.0,0.00025859,2]
[381876208,1756384255131,-1000.0,0.000259,9]
[381876210,1756384255140,-153.50001804,0.00025909,30]
[381876212,1756384255149,-152.008484,0.0002598,7]
[381876214,1756384255159,-151.0,0.0002598,7]
[381876216,1756384255168,-151.686826,0.0002598,7]
[381876218,1756384255177,-151.0,0.0002598,7]
[381876220,1756384255186,-151.0,0.0002598,7]
[381876222,1756384255198,-151.0,0.0002598,7]
[381876224,1756384255208,-270.293858,0.0002598,7]
[381876226,1756384255217,-151.0,0.0002598,7]
[381876228,1756384255227,-151.0,0.0002598,7]
[381876230,1756384255237,-151.0,0.0002598,7]
[381876232,1756384255246,-151.0,0.0002598,7]